bitfinex-derivatives/quotes_BTCF0:USTF0_20250510
["timestamp","ask_amount","ask_price","bid_price","bid_amount"]
[1746900263601,0.71989118,103290.0,103280.0,1.1486392]
[1746900264103,0.53989118,103290.0,103280.0,1.0822392]
[1746900264410,0.63989118,103290.0,103280.0,1.0822392]
[1746900265299,0.63989118,103290.0,103280.0,1.1483392]
[1746900267506,0.4177905,103290.0,103280.0,1.1483392]
[1746900267704,0.53989118,103290.0,103280.0,1.1483392]
[1746900270003,0.4177905,103290.0,103280.0,1.1483392]
[1746900270205,0.53989118,103290.0,103280.0,1.1483392]
[1746900271307,0.53989118,103290.0,103280.0,1.1338192]
[1746900273107,0.4177905,103290.0,103280.0,1.1338192]
[1746900273312,0.53989118,103290.0,103280.0,1.1338192]
[1746900273608,0.51680118,103290.0,103280.0,1.1338192]
[1746900273813,0.51680118,103290.0,103280.0,1.1438192]
[1746900274309,0.3947005,103290.0,103280.0,1.1438192]
[1746900274511,0.51680118,103290.0,103280.0,1.1438192]
[1746900276408,0.2583005,103290.0,103280.0,1.1438192]
[1746900276608,0.1946005,103290.0,103280.0,1.1438192]
[1746900276808,0.3250005,103290.0,103280.0,1.1438192]
[1746900278509,0.44710118,103290.0,103280.0,1.1438192]
[1746900279711,0.3250005,103290.0,103280.0,1.1438192]
[1746900280407,0.001,103290.0,103280.0,1.26591988]
[1746900280613,0.1946005,103290.0,103280.0,1.48591988]
[1746900281621,0.1946005,103290.0,103280.0,1.58273936]
[1746900281622,0.001,103290.0,103280.0,1.58273936]
[1746900282417,0.001,103290.0,103280.0,1.70484004]
[1746900283111,0.001,103290.0,103280.0,1.46063868]
[1746900283309,0.001,103290.0,103280.0,1.70484004]
[1746900284608,0.001,103290.0,103280.0,2.16892004]
[1746900284809,0.41719754,103310.0,103300.0,0.1935817]
[1746900285010,0.41719754,103310.0,103300.0,1.56858306]
[1746900285310,0.36846754,103310.0,103300.0,1.58048238]
[1746900285509,0.36846754,103310.0,103300.0,1.67730186]
[1746900285712,0.36846754,103310.0,103300.0,1.74116564]
[1746900287210,0.36946754,103310.0,103300.0,1.74116564]
[1746900287512,0.36946754,103310.0,103300.0,1.74316564]
[1746900287898,0.36946754,103310.0,103300.0,1.74416564]
[1746900287899,0.36846754,103310.0,103300.0,1.74416564]
[1746900288307,0.36846754,103310.0,103300.0,1.75869899]
[1746900290516,0.36846754,103310.0,103300.0,1.57273453]
[1746900290816,0.36846754,103310.0,103300.0,1.75869899]
[1746900295817,0.36846754,103310.0,103300.0,1.75769899]
[1746900296018,0.36946754,103310.0,103300.0,1.76069899]
[1746900296916,0.36946754,103310.0,103300.0,1.57473453]
[1746900297115,0.37046754,103310.0,103300.0,1.76169899]
[1746900301520,0.37046754,103310.0,103300.0,1.57573453]
[1746900301721,0.37046754,103310.0,103300.0,1.76169899]
[1746900304611,0.37046754,103310.0,103300.0,1.97101899]
[1746900305820,0.37046754,103310.0,103300.0,1.78505453]
[1746900306121,0.37046754,103310.0,103300.0,2.02904219]
[1746900309721,0.37046754,103310.0,103300.0,2.09284219]
[1746900312117,0.37046754,103310.0,103300.0,2.05284219]
[1746900312317,0.37046754,103310.0,103300.0,2.06736219]
[1746900313024,0.37046754,103310.0,103300.0,2.07417153]
[1746900313221,0.37046754,103310.0,103300.0,2.07417154]
[1746900313621,0.43356754,103310.0,103300.0,1.48906388]
[1746900313822,0.95002437,103310.0,103300.0,1.34366388]
[1746900314020,0.95002437,103310.0,103300.0,1.02943505]
[1746900314324,0.95002437,103310.0,103300.0,0.81585335]
[1746900314515,1.01002437,103310.0,103300.0,0.81585335]
[1746900314721,1.22002437,103310.0,103300.0,0.80133335]
[1746900315725,1.28406643,103310.0,103300.0,0.80133335]
[1746900315929,1.63086643,103310.0,103300.0,0.426]
[1746900316321,1.99166643,103310.0,103300.0,0.426]
[1746900317418,1.38086643,103310.0,103300.0,0.426]
[1746900319527,1.28406643,103310.0,103300.0,0.426]
[1746900320228,1.45006643,103310.0,103300.0,0.426]
[1746900320429,1.54686643,103310.0,103300.0,0.426]
[1746900320621,1.45006643,103310.0,103300.0,0.426]
[1746900321221,1.28406643,103310.0,103300.0,0.426]
[1746900321522,1.09803054,103310.0,103300.0,0.6195817]
[1746900321720,1.09803054,103310.0,103300.0,0.9803817]
[1746900323429,1.28406643,103310.0,103300.0,0.9803817]
[1746900324837,1.09803054,103310.0,103300.0,0.9803817]
[1746900325036,0.88803054,103310.0,103300.0,1.0436817]
[1746900325225,0.88803054,103310.0,103300.0,0.9803817]
[1746900325527,0.88803054,103310.0,103300.0,1.05825722]
[1746900325924,0.75803054,103310.0,103300.0,1.05825722]
[1746900326324,0.75803054,103310.0,103300.0,1.24429311]
[1746900327131,0.75803054,103310.0,103300.0,1.05825722]
[1746900328327,0.75803054,103310.0,103300.0,1.06825722]
[1746900328328,0.56446754,103310.0,103300.0,1.06825722]
[1746900328528,0.75803054,103310.0,103300.0,1.32159311]
[1746900329234,0.75803054,103310.0,103300.0,1.13555722]
[1746900333436,0.94406643,103310.0,103300.0,0.67137552]
[1746900333842,0.99406643,103310.0,103300.0,0.6568]
[1746900334032,1.26406643,103310.0,103300.0,0.6568]
[1746900334635,1.26406643,103310.0,103300.0,0.8503817]
[1746900334836,1.07803054,103310.0,103300.0,0.8503817]
[1746900335037,1.26406643,103310.0,103300.0,0.8503817]
[1746900335741,1.47002643,103310.0,103300.0,0.8503817]
[1746900335942,1.47002643,103310.0,103300.0,0.9162817]
[1746900336339,1.28399054,103310.0,103300.0,0.9162817]
[1746900336541,1.47002643,103310.0,103300.0,0.9162817]
[1746900337338,1.26406643,103310.0,103300.0,0.9162817]
[1746900337843,1.20010347,103310.0,103300.0,0.9162817]
[1746900339332,0.88010347,103310.0,103300.0,0.9162817]
[1746900342438,0.88010347,103310.0,103300.0,0.9462817]
[1746900342744,0.88010347,103310.0,103300.0,1.0113817]
[1746900344046,0.88010347,103310.0,103300.0,1.02555767]
[1746900345449,0.75803054,103310.0,103300.0,1.02555767]
[1746900345649,0.88010347,103310.0,103300.0,1.02555767]
[1746900351250,0.75803054,103310.0,103300.0,1.02555767]
[1746900351452,0.88010347,103310.0,103300.0,1.02555767]
[1746900351756,0.87910347,103310.0,103300.0,1.02355767]
[1746900352159,0.87810347,103310.0,103300.0,1.02055767]
[1746900352358,0.87810347,103310.0,103300.0,1.02255767]
[1746900352559,0.75603054,103310.0,103300.0,1.02255767]
[1746900352751,0.87810347,103310.0,103300.0,1.02255767]
[1746900354669,0.87810347,103310.0,103300.0,0.99255767]
[1746900354854,0.89810347,103310.0,103300.0,0.99255767]
[1746900358863,0.89810347,103310.0,103300.0,0.63175767]
[1746900359063,0.89810347,103310.0,103300.0,0.99255767]
[1746900360267,0.87810347,103310.0,103300.0,1.00255767]
[1746900361571,0.75603054,103310.0,103300.0,1.00255767]
[1746900361767,0.68793054,103310.0,103300.0,1.00255767]
[1746900361952,0.56203054,103310.0,103300.0,1.04255767]
[1746900362559,0.36846754,103310.0,103300.0,1.1646306]
[1746900362759,0.56203054,103310.0,103300.0,1.3746306]
[1746900363067,0.68410347,103310.0,103300.0,1.21255767]
[1746900363268,0.68410347,103310.0,103300.0,1.22255767]
[1746900364471,0.56203054,103310.0,103300.0,1.22255767]
[1746900364772,0.58622054,103310.0,103300.0,1.22255767]
[1746900365771,0.39265754,103310.0,103300.0,0.9838306]
[1746900365971,0.39265754,103310.0,103300.0,1.7054306]
[1746900366368,0.39265754,103310.0,103300.0,1.58335767]
[1746900366569,0.39265754,103310.0,103300.0,1.7054306]
[1746900366967,0.39265754,103310.0,103300.0,1.82750353]
[1746900367172,0.08476841,103320.0,103310.0,0.193563]
[1746900367374,0.08476841,103320.0,103310.0,1.99794886]
[1746900367574,0.08443841,103320.0,103310.0,1.99794886]
[1746900367777,0.08443841,103320.0,103310.0,1.97267666]
[1746900368669,0.08443841,103320.0,103310.0,1.97367666]
[1746900369066,0.08443841,103320.0,103310.0,1.97567666]
[1746900369661,0.08443841,103320.0,103310.0,2.0395113]
[1746900370177,0.08476841,103320.0,103310.0,2.0395113]
[1746900370476,0.08476841,103320.0,103310.0,2.0490056]
[1746900371079,0.02852,103320.0,103310.0,2.0490056]
[1746900371872,0.00433,103320.0,103310.0,1.9850056]
[1746900372779,0.00079,103340.0,103330.0,0.1935255]
[1746900372981,0.00079,103340.0,103330.0,1.69253307]
[1746900373170,0.3613514,103350.0,103340.0,0.1935068]
[1746900373370,0.3613514,103350.0,103340.0,0.9097068]
[1746900373972,0.3613514,103350.0,103340.0,0.9057068]
[1746900374184,0.3129749,103350.0,103340.0,0.9057068]
[1746900374480,0.3129749,103350.0,103340.0,0.9202168]
[1746900374781,0.3169749,103350.0,103340.0,0.9802168]
[1746900375279,0.3169749,103350.0,103340.0,0.9792168]
[1746900375780,0.3441549,103350.0,103340.0,1.0292168]
[1746900375982,0.3441549,103350.0,103340.0,1.0792168]
[1746900376172,0.3441549,103350.0,103340.0,0.9792168]
[1746900376372,0.4073549,103350.0,103340.0,1.0392168]
[1746900379988,0.93326247,103350.0,103340.0,0.9738168]
[1746900380485,0.59326247,103350.0,103340.0,0.9738168]
[1746900380672,0.92326247,103350.0,103340.0,0.9738168]
[1746900380981,0.59326247,103350.0,103340.0,0.9138168]
[1746900383080,0.90326247,103350.0,103340.0,0.30451]
[1746900383291,0.90326247,103350.0,103340.0,0.09451]
[1746900383292,1.08917004,103350.0,103340.0,0.09451]
[1746900383489,1.54673404,103350.0,103340.0,0.09451]
[1746900383985,1.54673404,103350.0,103340.0,0.08]
[1746900384183,1.71273404,103350.0,103340.0,0.08]
[1746900387288,1.54673404,103350.0,103340.0,0.08]
[1746900387584,0.1935068,103340.0,103330.0,0.2419053]
[1746900387779,0.94771437,103340.0,103330.0,0.01]
[1746900388182,0.7618068,103340.0,103330.0,0.01]
[1746900388383,0.94771437,103340.0,103330.0,0.01]
[1746900388879,0.94871437,103340.0,103330.0,0.01]
[1746900389390,0.94871437,103340.0,103330.0,0.3708]
[1746900391287,0.7869968,103340.0,103330.0,0.5643255]
[1746900391486,0.97290437,103340.0,103330.0,0.5643255]
[1746900391788,0.6069968,103340.0,103330.0,0.7743255]
[1746900392087,0.6069968,103340.0,103330.0,0.9013255]
[1746900392288,0.6069968,103340.0,103330.0,0.9648255]
[1746900392490,0.6069968,103340.0,103330.0,1.18073307]
[1746900392881,0.4086968,103340.0,103330.0,1.18073307]
[1746900393379,0.5406968,103340.0,103330.0,0.9948255]
[1746900393790,0.3506968,103340.0,103330.0,0.9948255]
[1746900394180,0.53660437,103340.0,103330.0,0.9948255]
[1746900396789,0.3506968,103340.0,103330.0,0.9948255]
[1746900397389,0.5113968,103340.0,103330.0,0.9948255]
[1746900397589,0.3506968,103340.0,103330.0,0.9948255]
[1746900403794,0.2186968,103340.0,103330.0,0.9948255]
[1746900405691,0.34069263,103340.0,103330.0,0.9948255]
[1746900407392,0.40529263,103340.0,103330.0,0.9948255]
[1746900407990,0.47209263,103340.0,103330.0,0.9948255]
[1746900408693,0.40529263,103340.0,103330.0,0.9948255]
[1746900409783,0.02519,103340.0,103330.0,1.11682133]
[1746900410088,0.2186968,103340.0,103330.0,1.11682133]
[1746900410288,0.02519,103340.0,103330.0,1.11682133]
[1746900410584,0.2186968,103340.0,103330.0,1.11682133]
[1746900411280,0.2186968,103340.0,103330.0,0.9948255]
[1746900412385,0.34069263,103340.0,103330.0,1.0093355]
[1746900413294,0.40569263,103340.0,103330.0,1.0093355]
[1746900414096,0.66208846,103340.0,103330.0,0.6485355]
[1746900414289,0.54009263,103340.0,103330.0,0.6485355]
[1746900414793,0.54009263,103340.0,103330.0,1.0093355]
[1746900416590,0.41069263,103340.0,103330.0,1.0093355]
[1746900416795,0.2886968,103340.0,103330.0,1.13133133]
[1746900416994,0.2186968,103340.0,103330.0,1.13133133]
[1746900417290,0.2186968,103340.0,103330.0,1.0093355]
[1746900417996,0.2853968,103340.0,103330.0,1.0093355]
[1746900418688,0.02519,103340.0,103330.0,1.13133133]
[1746900418991,0.02519,103340.0,103330.0,1.14133133]
[1746900419698,0.02519,103340.0,103330.0,1.20520175]
[1746900422297,0.02519,103340.0,103330.0,1.47197438]
[1746900423591,0.02519,103340.0,103330.0,1.28610813]
[1746900424994,0.02519,103340.0,103330.0,1.47197438]
[1746900425197,0.02519,103340.0,103330.0,1.28610813]
[1746900429515,0.08759,103340.0,103330.0,1.28610813]
[1746900430705,0.46696305,103340.0,103330.0,0.5206355]
[1746900430898,0.59626305,103340.0,103330.0,0.8814355]
[1746900434199,0.4103968,103340.0,103330.0,0.8814355]
[1746900434411,0.59626305,103340.0,103330.0,0.8814355]
[1746900435805,0.59626305,103340.0,103330.0,0.5206355]
[1746900436007,0.59626305,103340.0,103330.0,0.8814355]
[1746900436505,0.4103968,103340.0,103330.0,1.06730175]
[1746900436704,0.21689,103340.0,103330.0,1.0060355]
[1746900437905,0.4103968,103340.0,103330.0,1.0060355]
[1746900438107,0.02519,103340.0,103330.0,1.19190175]
[1746900438296,0.02519,103340.0,103330.0,1.66867438]
[1746900439500,0.02519,103340.0,103330.0,1.67067438]
[1746900441107,0.02419,103340.0,103330.0,1.67167438]
[1746900441509,0.02419,103340.0,103330.0,1.31087438]
[1746900441706,0.02419,103340.0,103330.0,2.03247438]
[1746900444798,0.00478,103350.0,103340.0,0.1935068]
[1746900445009,0.00478,103350.0,103340.0,1.65177305]
[1746900445411,0.00478,103350.0,103340.0,1.74854568]
[1746900445805,0.00478,103350.0,103340.0,1.57718943]
[1746900446008,0.00478,103350.0,103340.0,1.76305568]
[1746900446612,0.00478,103350.0,103340.0,1.57718943]
[1746900446814,0.00478,103350.0,103340.0,1.76505568]
[1746900447313,0.00478,103350.0,103340.0,1.76605568]
[1746900447532,0.004,103350.0,103340.0,1.77552743]
[1746900447806,0.9292206,103350.0,103340.0,0.37831]
[1746900448012,1.0588206,103350.0,103340.0,0.10751]
[1746900448313,1.39975435,103350.0,103340.0,0.10751]
[1746900449112,1.39975435,103350.0,103340.0,0.10551]
[1746900449314,1.23475435,103350.0,103340.0,0.10551]
[1746900449913,1.23475435,103350.0,103340.0,0.2990168]
[1746900450708,1.23653435,103350.0,103340.0,0.2980168]
[1746900450912,1.4224006,103350.0,103340.0,0.2980168]
[1746900451120,0.1935255,103330.0,103320.0,0.91999672]
[1746900451314,0.80019175,103330.0,103320.0,0.5503044]
[1746900451518,0.56739175,103330.0,103320.0,0.5503044]
[1746900451708,0.56739175,103330.0,103320.0,0.6135044]
[1746900452023,0.56739175,103330.0,103320.0,0.9743044]
[1746900452409,0.56739175,103330.0,103320.0,0.9773044]
[1746900453012,0.56739175,103330.0,103320.0,0.9803044]
[1746900453216,0.75739175,103330.0,103320.0,0.9803044]
[1746900453513,0.5715255,103330.0,103320.0,0.9803044]
[1746900453817,0.75739175,103330.0,103320.0,0.9803044]
[1746900454415,0.75739175,103330.0,103320.0,0.9783044]
[1746900454817,0.75739175,103330.0,103320.0,0.9753044]
[1746900455019,0.75739175,103330.0,103320.0,0.9763044]
[1746900455319,0.75739175,103330.0,103320.0,1.0442044]
[1746900455516,0.5715255,103330.0,103320.0,1.0442044]
[1746900455815,0.3215255,103330.0,103320.0,1.1095044]
[1746900456218,0.3215255,103330.0,103320.0,1.1795044]
[1746900457616,0.50739175,103330.0,103320.0,1.1095044]
[1746900458119,0.50739175,103330.0,103320.0,1.1195044]
[1746900460326,0.3215255,103330.0,103320.0,1.1195044]
[1746900460518,0.50739175,103330.0,103320.0,1.1195044]
[1746900462926,0.50739175,103330.0,103320.0,1.0542044]
[1746900463426,0.3215255,103330.0,103320.0,1.0542044]
[1746900463815,0.50739175,103330.0,103320.0,1.0542044]
[1746900464630,0.3215255,103330.0,103320.0,1.0542044]
[1746900464922,0.50739175,103330.0,103320.0,1.0542044]
[1746900466425,0.3215255,103330.0,103320.0,1.0542044]
[1746900466626,0.50739175,103330.0,103320.0,1.0542044]
[1746900468628,0.66739175,103330.0,103320.0,1.0542044]
[1746900469929,0.4815255,103330.0,103320.0,1.0542044]
[1746900470131,0.66739175,103330.0,103320.0,1.0542044]
[1746900470627,0.66739175,103330.0,103320.0,0.6934044]
[1746900470828,0.4162255,103330.0,103320.0,0.6934044]
[1746900471020,0.3535255,103330.0,103320.0,1.0542044]
[1746900471221,0.16,103330.0,103320.0,1.0542044]
[1746900471429,0.1935255,103330.0,103320.0,1.0542044]
[1746900473629,0.4979804,103340.0,103330.0,0.1935255]
[1746900473828,0.3677,103340.0,103330.0,1.0285255]
[1746900474026,0.3232068,103340.0,103330.0,1.1285255]
[1746900474234,0.50907305,103340.0,103330.0,1.1285255]
[1746900474540,0.3232068,103340.0,103330.0,1.1285255]
[1746900475032,0.3242068,103340.0,103330.0,1.1285255]
[1746900475734,0.3252068,103340.0,103330.0,1.1285255]
[1746900479743,0.1317,103340.0,103330.0,1.1285255]
[1746900479936,0.002,103340.0,103330.0,1.1285255]
[1746900480333,0.002,103340.0,103330.0,1.1585255]
[1746900480936,0.38137305,103340.0,103330.0,1.1585255]
[1746900481137,0.31406625,103340.0,103330.0,1.1585255]
[1746900482443,0.31483625,103340.0,103330.0,1.1585255]
[1746900482742,0.12897,103340.0,103330.0,1.1585255]
[1746900484741,0.3224768,103340.0,103330.0,1.1585255]
[1746900485045,0.57114305,103340.0,103330.0,0.7336255]
[1746900485549,0.57114305,103340.0,103330.0,1.0944255]
[1746900488950,0.57114305,103340.0,103330.0,1.0644255]
[1746900489756,0.57114305,103340.0,103330.0,0.9644255]
[1746900493958,0.57114305,103340.0,103330.0,0.6036255]
[1746900494258,0.57114305,103340.0,103330.0,0.9644255]
[1746900494858,0.3852768,103340.0,103330.0,0.9644255]
[1746900495060,0.57114305,103340.0,103330.0,0.9644255]
[1746900495264,0.57114305,103340.0,103330.0,1.0303255]
[1746900496254,0.57114305,103340.0,103330.0,0.9644255]
[1746900497966,0.3852768,103340.0,103330.0,0.9644255]
[1746900498165,0.57114305,103340.0,103330.0,0.9644255]
[1746900499064,0.3852768,103340.0,103330.0,0.9644255]
[1746900499264,0.57114305,103340.0,103330.0,1.0263255]
[1746900501456,0.57114305,103340.0,103330.0,0.6036255]
[1746900501658,0.57114305,103340.0,103330.0,0.9644255]
[1746900502268,0.57114305,103340.0,103330.0,0.6036255]
[1746900502563,0.57114305,103340.0,103330.0,0.9644255]
[1746900503067,0.73184305,103340.0,103330.0,0.9644255]
[1746900503268,0.57114305,103340.0,103330.0,0.9644255]
[1746900503457,0.57114305,103340.0,103330.0,1.0321255]
[1746900503966,0.3852768,103340.0,103330.0,1.0321255]
[1746900504266,0.57114305,103340.0,103330.0,1.0321255]
[1746900504867,0.3852768,103340.0,103330.0,1.0321255]
[1746900505167,0.57114305,103340.0,103330.0,1.0321255]
[1746900505467,0.3224768,103340.0,103330.0,1.0321255]
[1746900506358,0.50834305,103340.0,103330.0,0.6713255]
[1746900506559,0.57034305,103340.0,103330.0,1.0321255]
[1746900513763,0.50648302,103340.0,103330.0,1.0321255]
[1746900515678,0.62848924,103340.0,103330.0,0.7709]
[1746900515970,0.62848924,103340.0,103330.0,0.9644255]
[1746900516174,0.67848924,103340.0,103330.0,0.9644255]
[1746900516870,0.67848924,103340.0,103330.0,1.0303255]
[1746900522077,1.35928924,103340.0,103330.0,0.3469]
[1746900522277,1.35928924,103340.0,103330.0,0.5404255]
[1746900522674,0.99848924,103340.0,103330.0,0.5404255]
[1746900522974,0.99848924,103340.0,103330.0,0.9012255]
[1746900523872,0.7544768,103340.0,103330.0,0.9012255]
[1746900524071,0.99848924,103340.0,103330.0,0.9012255]
[1746900525478,0.7544768,103340.0,103330.0,0.9012255]
[1746900525777,0.87648302,103340.0,103330.0,0.6087255]
[1746900525985,0.87648302,103340.0,103330.0,1.0389255]
[1746900529386,0.88658302,103340.0,103330.0,1.0389255]
[1746900530483,0.7645768,103340.0,103330.0,1.0389255]
[1746900530682,0.88658302,103340.0,103330.0,1.0389255]
[1746900531389,0.7645768,103340.0,103330.0,1.0389255]
[1746900531575,0.88658302,103340.0,103330.0,1.0389255]
[1746900534084,0.82458302,103340.0,103330.0,1.0389255]
[1746900534286,0.01287,103340.0,103330.0,1.48093172]
[1746900535789,0.2053768,103340.0,103330.0,1.3609255]
[1746900536093,0.01187,103340.0,103330.0,1.3609255]
[1746900536389,0.01087,103340.0,103330.0,1.3619255]
[1746900536891,0.01087,103340.0,103330.0,1.64456018]
[1746900537889,0.01087,103340.0,103330.0,1.83252018]
[1746900538193,0.01087,103340.0,103330.0,2.17929218]
[1746900538377,0.01087,103340.0,103330.0,1.92929218]
[1746900543391,0.01087,103340.0,103330.0,1.64377813]
[1746900545702,0.01087,103340.0,103330.0,1.5470055]
[1746900545893,0.14517,103340.0,103330.0,1.5470055]
[1746900547901,0.14517,103340.0,103330.0,1.5615155]
[1746900557798,0.14517,103340.0,103330.0,1.68348974]
[1746900558297,0.07747,103340.0,103330.0,1.68348974]
[1746900559209,0.07747,103340.0,103330.0,1.5615155]
[1746900559399,0.07747,103340.0,103330.0,1.68348974]
[1746900560109,0.07747,103340.0,103330.0,1.49840974]
[1746900561508,0.01087,103340.0,103330.0,1.49840974]
[1746900562512,0.07677,103340.0,103330.0,1.49840974]
[1746900564910,0.07677,103340.0,103330.0,1.3764355]
[1746900565107,0.33124424,103340.0,103330.0,1.3764355]
[1746900566305,0.20927,103340.0,103330.0,1.3764355]
[1746900568523,0.33124424,103340.0,103330.0,1.3764355]
[1746900569223,0.20927,103340.0,103330.0,1.3764355]
[1746900570128,0.20927,103340.0,103330.0,1.0156355]
[1746900570326,0.20927,103340.0,103330.0,1.7372355]
[1746900573129,0.64672528,103340.0,103330.0,1.6689355]
[1746900573332,0.69672528,103340.0,103330.0,1.3395355]
[1746900573532,0.69672528,103340.0,103330.0,0.6179355]
[1746900574124,0.69672528,103340.0,103330.0,0.9787355]
[1746900574125,0.57475104,103340.0,103330.0,0.9787355]
[1746900574429,0.57475104,103340.0,103330.0,0.6179355]
[1746900574628,0.57475104,103340.0,103330.0,0.9787355]
[1746900576934,0.57475104,103340.0,103330.0,1.0460355]
[1746900579032,0.69672528,103340.0,103330.0,0.9787355]
[1746900579226,0.98672528,103340.0,103330.0,0.35751]
[1746900579427,0.98672528,103340.0,103330.0,0.4910355]
[1746900579628,0.98672528,103340.0,103330.0,0.4765255]
[1746900580236,1.15272528,103340.0,103330.0,0.4765255]
[1746900584133,1.15272528,103340.0,103330.0,0.5406255]
[1746900585142,0.98672528,103340.0,103330.0,0.5406255]
[1746900586840,0.98672528,103340.0,103330.0,0.9014255]
[1746900587040,0.98672528,103340.0,103330.0,0.5406255]
[1746900587238,1.15272528,103340.0,103330.0,0.5406255]
[1746900588144,0.98672528,103340.0,103330.0,0.9014255]
[1746900588336,0.98672528,103340.0,103330.0,0.5406255]
[1746900588536,0.98672528,103340.0,103330.0,0.9014255]
[1746900588737,0.98672528,103340.0,103330.0,0.5406255]
[1746900589037,0.98672528,103340.0,103330.0,0.9014255]
[1746900589337,0.98672528,103340.0,103330.0,0.5406255]
[1746900589743,0.98672528,103340.0,103330.0,0.9014255]
[1746900591134,0.9232568,103340.0,103330.0,0.9114255]
[1746900591338,0.84523104,103340.0,103330.0,1.0369255]
[1746900591645,0.66475104,103340.0,103330.0,1.0369255]
[1746900591942,0.66475104,103340.0,103330.0,1.0514355]
[1746900593434,0.5427768,103340.0,103330.0,1.0514355]
[1746900593637,0.66475104,103340.0,103330.0,1.0514355]
[1746900595738,0.52475104,103340.0,103330.0,1.0514355]
[1746900597133,0.32635104,103340.0,103330.0,1.0514355]
[1746900597338,0.2043768,103340.0,103330.0,1.0814355]
[1746900600746,0.01087,103340.0,103330.0,1.0814355]
[1746900601050,0.2043768,103340.0,103330.0,1.20340974]
[1746900601235,0.2043768,103340.0,103330.0,1.0814355]
[1746900601439,0.32635104,103340.0,103330.0,1.0814355]
[1746900606256,0.58152528,103340.0,103330.0,1.0814355]
[1746900606555,0.64472528,103340.0,103330.0,1.0814355]
[1746900607149,0.64472528,103340.0,103330.0,1.0514355]
[1746900607543,0.64472528,103340.0,103330.0,0.9784355]
[1746900607947,0.70472528,103340.0,103330.0,1.0473355]
[1746900610556,0.58275104,103340.0,103330.0,1.0473355]
[1746900611163,0.70472528,103340.0,103330.0,1.0473355]
[1746900611352,0.58275104,103340.0,103330.0,1.0473355]
[1746900616061,1.34552528,103340.0,103330.0,0.36161]
[1746900616257,1.34552528,103340.0,103330.0,0.5551355]
[1746900616664,0.98472528,103340.0,103330.0,0.5551355]
[1746900616865,0.98472528,103340.0,103330.0,0.36161]
[1746900617165,1.31142528,103340.0,103330.0,0.4910355]
[1746900617463,1.31142528,103340.0,103330.0,0.2710355]
[1746900617664,1.31142528,103340.0,103330.0,0.2690355]
[1746900617863,1.31242528,103340.0,103330.0,0.2680355]
[1746900618053,1.67322528,103340.0,103330.0,0.2680355]
[1746900618254,1.50722528,103340.0,103330.0,0.2680355]
[1746900619869,1.50722528,103340.0,103330.0,0.07451]
[1746900620866,1.50722528,103340.0,103330.0,0.2535255]
[1746900621559,0.9024768,103340.0,103330.0,0.2535255]
[1746900621759,1.14642528,103340.0,103330.0,0.3220255]
[1746900628971,1.32362528,103340.0,103330.0,0.3220255]
[1746900629270,1.32362528,103340.0,103330.0,0.3858255]
[1746900633769,1.32322528,103340.0,103330.0,0.3858255]
[1746900633965,1.32322528,103340.0,103330.0,0.4517255]
[1746900637667,0.86375104,103340.0,103330.0,0.4517255]
[1746900637877,1.16220528,103340.0,103330.0,0.4617255]
[1746900638078,1.16220528,103340.0,103330.0,0.4517255]
[1746900640075,0.98220528,103340.0,103330.0,0.4517255]
[1746900644674,1.56300528,103340.0,103330.0,0.1285]
[1746900648174,1.3190568,103340.0,103330.0,0.1285]
[1746900648378,1.56300528,103340.0,103330.0,0.1285]
[1746900649478,1.56300528,103340.0,103330.0,0.1922]
[1746900650267,1.56300528,103340.0,103330.0,0.3857255]
[1746900650465,1.56300528,103340.0,103330.0,0.4529255]
[1746900651173,1.20220528,103340.0,103330.0,0.4529255]
[1746900655481,0.7817768,103340.0,103330.0,0.4529255]
[1746900655681,1.07871104,103340.0,103330.0,0.3929255]
[1746900655976,1.07871104,103340.0,103330.0,0.6229255]
[1746900656182,1.20068528,103340.0,103330.0,0.6229255]
[1746900657591,1.02572528,103340.0,103330.0,0.6229255]
[1746900657779,1.07855104,103340.0,103330.0,0.6229255]
[1746900659786,1.20052528,103340.0,103330.0,0.6229255]
[1746900660185,0.7817768,103340.0,103330.0,0.6229255]
[1746900660485,0.2053768,103340.0,103330.0,0.9937255]
[1746900660681,0.32735104,103340.0,103330.0,0.9937255]
[1746900661084,0.39705104,103340.0,103330.0,0.9937255]
[1746900661280,0.51902528,103340.0,103330.0,0.9937255]
[1746900661479,0.64912528,103340.0,103330.0,0.9937255]
[1746900662689,0.52715104,103340.0,103330.0,0.9937255]
[1746900664083,0.64912528,103340.0,103330.0,0.9937255]
[1746900665081,0.52715104,103340.0,103330.0,0.9937255]
[1746900666086,0.64912528,103340.0,103330.0,0.9937255]
[1746900666486,0.52715104,103340.0,103330.0,0.9937255]
[1746900667089,0.64912528,103340.0,103330.0,0.9937255]
[1746900668977,1.00912528,103340.0,103330.0,0.9937255]
[1746900669182,1.36992528,103340.0,103330.0,0.2985]
[1746900669886,1.36992528,103340.0,103330.0,0.0885]
[1746900670076,1.54416528,103340.0,103330.0,0.0885]
[1746900670282,1.54416528,103340.0,103330.0,0.02]
[1746900670989,1.54416528,103340.0,103330.0,0.0836]
[1746900671387,1.18336528,103340.0,103330.0,0.0836]
[1746900672188,1.54416528,103340.0,103330.0,0.0836]
[1746900672587,1.70486528,103340.0,103330.0,0.0836]
[1746900672989,1.4609168,103340.0,103330.0,0.0836]
[1746900673185,1.34406528,103340.0,103330.0,0.0836]
[1746900673385,1.70486528,103340.0,103330.0,0.0836]
[1746900673693,1.34406528,103340.0,103330.0,0.0836]
[1746900674596,1.70486528,103340.0,103330.0,0.0836]
[1746900674899,1.34406528,103340.0,103330.0,0.0836]
[1746900675195,1.70486528,103340.0,103330.0,0.0836]
[1746900675491,1.34406528,103340.0,103330.0,0.0836]
[1746900677390,1.54416528,103340.0,103330.0,0.0836]
[1746900677582,1.18336528,103340.0,103330.0,0.0836]
[1746900677786,1.54416528,103340.0,103330.0,0.0836]
[1746900679597,1.18336528,103340.0,103330.0,0.0836]
[1746900680398,1.18336528,103340.0,103330.0,0.2771255]
[1746900680691,1.35632528,103340.0,103330.0,0.7663255]
[1746900681488,1.18336528,103340.0,103330.0,0.7663255]
[1746900681691,1.35624528,103340.0,103330.0,0.7663255]
[1746900681999,1.23427104,103340.0,103330.0,0.7663255]
[1746900682398,1.35624528,103340.0,103330.0,0.7663255]
[1746900683001,1.18336528,103340.0,103330.0,0.7663255]
[1746900683298,1.35612528,103340.0,103330.0,0.7663255]
[1746900684502,1.35612528,103340.0,103330.0,0.4055255]
[1746900684895,1.35612528,103340.0,103330.0,0.7663255]
[1746900685996,1.35612528,103340.0,103330.0,0.4055255]
[1746900686902,1.35612528,103340.0,103330.0,0.7663255]
[1746900689004,1.05612528,103340.0,103330.0,0.7663255]
[1746900689506,0.8121768,103340.0,103330.0,0.7663255]
[1746900689697,0.93415104,103340.0,103330.0,0.7663255]
[1746900690302,1.05612528,103340.0,103330.0,0.7663255]
[1746900690497,0.8121768,103340.0,103330.0,0.7663255]
[1746900690704,1.05612528,103340.0,103330.0,0.7663255]
[1746900691005,0.88188528,103340.0,103330.0,0.7663255]